fUSD/lending_fUSD_20250211
["ID","MTS","AMOUNT","RATE_DAILY","PERIOD"]
[352747550,1739286687567,-500.0,0.00016849,2]
[352747551,1739286687576,-500.0,0.00016849,2]
[352747552,1739286687586,-159.69777984,0.00016849,2]
[352747553,1739286687596,-890.02,0.00016849,2]
[352747554,1739286687605,-151.0,0.00016849,2]
[352747555,1739286687615,-500.0,0.00016849,2]
[352747556,1739286687625,-500.0,0.00016849,2]
[352747557,1739286687635,-500.0,0.00016849,2]
[352747558,1739286687644,-151.0,0.00016849,2]
[352747559,1739286687654,-500.0,0.00016849,2]
[352747560,1739286687667,-500.0,0.00016849,2]
[352747561,1739286687677,-1614.7,0.00016849,2]
[352747562,1739286687687,-3956.045889,0.00016849,2]
[352747563,1739286687697,-500.0,0.00016849,2]
[352747564,1739286687706,-500.0,0.00016849,2]
[352747565,1739286687716,-500.0,0.00016849,2]
[352747566,1739286687726,-3956.045889,0.00016849,2]
[352747567,1739286687735,-500.0,0.00016849,2]
[352747568,1739286687744,-525.96,0.00016849,2]
[352747569,1739286687754,-500.0,0.00016849,2]
[352747570,1739286687763,-500.0,0.00016849,2]
[352747571,1739286687772,-158.643691,0.00016849,2]
[352747572,1739286687782,-500.0,0.00016849,2]
[352747573,1739286687791,-500.0,0.00016849,2]
[352747574,1739286687801,-500.0,0.00016849,2]
[352747575,1739286687810,-500.0,0.00016849,2]
[352747576,1739286687823,-500.0,0.00016849,2]
[352747577,1739286687833,-500.0,0.00016849,2]
[352747578,1739286687842,-500.0,0.00016849,2]
[352747579,1739286687852,-245.26611865,0.00016849,2]
[352747580,1739286687862,-500.0,0.00016849,2]
[352747581,1739286687871,-500.0,0.00016849,2]
[352747582,1739286687881,-500.0,0.00016849,2]
[352747583,1739286687892,-500.0,0.00016849,2]
[352747584,1739286687903,-500.0,0.00016849,2]
[352747585,1739286687914,-502.09626851,0.00016849,2]
[352747586,1739286687924,-535.73,0.00016849,2]
[352747587,1739286687933,-151.0,0.00016849,2]
[352747588,1739286687943,-500.0,0.00016849,2]
[352747589,1739286687953,-449.743212,0.00016849,2]
[352747590,1739286687962,-151.0,0.00016849,2]
[352747591,1739286687972,-500.0,0.00016849,2]
[352747592,1739286687982,-500.0,0.00016849,2]
[352747593,1739286687991,-449.743212,0.00016849,2]
[352747594,1739286688002,-500.0,0.00016849,2]
[352747595,1739286688011,-500.0,0.00016849,2]
[352747596,1739286688021,-500.0,0.00016849,2]
[352747597,1739286688030,-500.0,0.00016849,2]
[352747598,1739286688040,-311.764583,0.00016849,2]
[352747599,1739286688050,-151.0,0.00016849,2]
[352747600,1739286688059,-500.0,0.00016849,2]
[352747601,1739286688069,-970.61,0.00016849,2]
[352747602,1739286688078,-500.0,0.00016849,2]
[352747603,1739286688088,-500.0,0.00016849,2]
[352747604,1739286688098,-311.764583,0.00016849,2]
[352747605,1739286688107,-598.09,0.00016849,2]
[352747606,1739286688116,-1473.24,0.00016849,2]
[352747607,1739286688126,-500.0,0.00016849,2]
[352747608,1739286688135,-618.84,0.00016849,2]
[352747609,1739286688145,-500.0,0.00016849,2]
[352747610,1739286688154,-505.73095588,0.00016849,2]
[352747611,1739286688165,-10000.0,0.00016849,2]
[352747612,1739286688174,-500.0,0.00016849,2]
[352747613,1739286688184,-436.055434,0.00016849,2]
[352747614,1739286688194,-1605.91,0.00016849,2]
[352747615,1739286688204,-500.0,0.00016849,2]
[352747616,1739286688213,-340.32127193,0.00016849,2]
[352747617,1739286688222,-500.0,0.00016849,2]
[352747618,1739286688232,-500.0,0.00016849,2]
[352747619,1739286688241,-436.055434,0.00016849,2]
[352747620,1739286688250,-10000.0,0.00016849,2]
[352747621,1739286688259,-500.0,0.00016849,2]
[352747622,1739286688269,-500.0,0.00016849,2]
[352747623,1739286688278,-10000.0,0.00016849,2]
[352747624,1739286688288,-500.0,0.00016849,2]
[352747625,1739286688298,-935.36,0.00016849,2]
[352747626,1739286688307,-1200.0,0.00016849,2]
[352747627,1739286688315,-10000.0,0.00016849,2]
[352747628,1739286688325,-404.65669768,0.00016849,2]
[352747629,1739286688334,-500.0,0.00016849,2]
[352747630,1739286688344,-510.71007519,0.00016849,2]
[352747631,1739286688353,-609.25,0.00016849,2]
[352747632,1739286688363,-500.0,0.00016849,2]
[352747633,1739286688373,-2176.048864,0.00016849,2]
[352747634,1739286688382,-500.0,0.00016849,2]
[352747635,1739286688391,-1061.83,0.00016849,2]
[352747636,1739286688401,-500.0,0.00016849,2]
[352747637,1739286688411,-500.0,0.00016849,2]
[352747638,1739286688421,-1177.97,0.00016849,2]
[352747639,1739286688430,-500.0,0.00016849,2]
[352747640,1739286688439,-500.0,0.00016849,2]
[352747641,1739286688448,-790.81,0.00016849,2]
[352747642,1739286688458,-797.71,0.00016849,2]
[352747643,1739286688467,-500.0,0.00016849,2]
[352747644,1739286688476,-872.71,0.00016849,2]
[352747645,1739286688486,-500.0,0.00016849,2]
[352747646,1739286688495,-500.0,0.00016849,2]
[352747647,1739286688504,-500.0,0.00016849,2]
[352747648,1739286688513,-151.0,0.00016849,2]
[352747649,1739286688523,-500.0,0.00016849,2]
[352747650,1739286688532,-1192.85,0.00016849,2]
[352747651,1739286688541,-833.49,0.00016849,2]
[352747652,1739286688551,-500.0,0.00016849,2]
[352747653,1739286688560,-500.0,0.00016849,2]
[352747654,1739286688570,-500.0,0.00016849,2]
[352747655,1739286688579,-209.614751,0.00016849,2]
[352747656,1739286688589,-984.69,0.00016849,2]
[352747657,1739286688598,-652.22,0.00016849,2]
[352747658,1739286688607,-852.49,0.00016849,2]
[352747659,1739286688616,-209.614751,0.00016849,2]
[352747660,1739286688626,-500.0,0.00016849,2]
[352747661,1739286688635,-1832.16,0.00016849,2]
[352747662,1739286688644,-597.163111,0.00016849,2]
[352747663,1739286688653,-783.59,0.00016849,2]
[352747664,1739286688664,-768.56,0.00016849,2]
[352747665,1739286688673,-500.0,0.00016849,2]
[352747666,1739286688682,-500.0,0.00016849,2]
[352747667,1739286688691,-931.3,0.00016849,2]
[352747668,1739286688700,-597.163111,0.00016849,2]
[352747669,1739286688709,-504.49335732,0.00016849,2]
[352747670,1739286688719,-500.0,0.00016849,2]
[352747671,1739286688727,-500.0,0.00016849,2]
[352747672,1739286688737,-500.0,0.00016849,2]
[352747673,1739286688746,-500.0,0.00016849,2]
[352747674,1739286688755,-842.458716,0.00016849,2]
[352747675,1739286688764,-1114.49,0.00016849,2]
[352747676,1739286688774,-590.19,0.00016849,2]
[352747677,1739286688783,-151.0,0.00016849,2]
[352747678,1739286688792,-842.458716,0.00016849,2]
[352747679,1739286688802,-500.0,0.00016849,2]
[352747680,1739286688811,-500.0,0.00016849,2]
[352747681,1739286688822,-913.97,0.00016849,2]
[352747682,1739286688832,-500.0,0.00016849,2]
[352747683,1739286688841,-974.56,0.00016849,2]
[352747684,1739286688850,-1325.53,0.00016849,2]
[352747685,1739286688859,-500.0,0.00016849,2]
[352747686,1739286688870,-500.0,0.00016849,2]
[352747687,1739286688879,-500.0,0.00016849,2]
[352747688,1739286688889,-823.38,0.00016849,2]
[352747689,1739286688900,-612.80435912,0.00016849,2]
[352747690,1739286688911,-862.09,0.00016849,2]
[352747691,1739286688920,-500.0,0.00016849,2]
[352747692,1739286688930,-1435.14,0.00016849,2]
[352747693,1739286688939,-500.0,0.00016849,2]
[352747694,1739286688948,-699.57,0.00016849,2]
[352747695,1739286688958,-500.0,0.00016849,2]
[352747696,1739286688967,-522.73,0.00016849,2]
[352747697,1739286688977,-803.99,0.00016849,2]
[352747698,1739286688987,-500.0,0.00016849,2]
[352747699,1739286688996,-509.39108,0.00016849,2]
[352747700,1739286689005,-500.0,0.00016849,2]
[352747701,1739286689015,-1172.84,0.00016849,2]
[352747702,1739286689023,-500.0,0.00016849,2]
[352747703,1739286689032,-500.0,0.00016849,2]
[352747704,1739286689042,-151.0,0.00016849,2]
[352747705,1739286689051,-938.61,0.00016849,2]
[352747706,1739286689061,-2710.08,0.00016849,2]
[352747707,1739286689071,-988.29,0.00016849,2]
[352747708,1739286689079,-500.0,0.00016849,2]
[352747709,1739286689089,-291.129706,0.00016849,2]
[352747710,1739286689098,-821.46,0.00016849,2]
[352747711,1739286689107,-500.0,0.00016849,2]
[352747712,1739286689117,-500.0,0.00016849,2]
[352747713,1739286689126,-500.0,0.00016849,2]
[352747714,1739286689135,-511.4,0.00016849,2]
[352747715,1739286689144,-1570.61,0.00016849,2]
[352747716,1739286689152,-4234.42,0.00016849,2]
[352747717,1739286689161,-533.8923056,0.00016849,2]
[352747718,1739286689171,-500.0,0.00016849,2]
[352747719,1739286689179,-1916.32,0.00016849,2]
[352747720,1739286689189,-988.03,0.00016849,2]
[352747721,1739286689197,-500.0,0.00016849,2]
[352747722,1739286689207,-500.0,0.00016849,2]
[352747723,1739286689215,-500.0,0.00016849,2]
[352747724,1739286689225,-197.14566251,0.00016849,2]
[352747725,1739286689234,-500.0,0.00016849,2]
[352747726,1739286689243,-500.0,0.00016849,2]
[352747727,1739286689252,-971.31,0.00016849,2]
[352747728,1739286689261,-500.0,0.00016849,2]
[352747729,1739286689270,-158.927127,0.00016849,2]
[352747730,1739286689279,-500.0,0.00016849,2]
[352747731,1739286689287,-500.0,0.00016849,2]
[352747732,1739286689297,-500.0,0.00016849,2]
[352747733,1739286689306,-158.927127,0.00016849,2]
[352747734,1739286689315,-549.8,0.00016849,2]
[352747735,1739286689324,-1031.13,0.00016849,2]
[352747736,1739286689334,-500.0,0.00016849,2]
[352747737,1739286689343,-500.0,0.00016849,2]
[352747738,1739286689352,-2804.1,0.00016849,2]
[352747739,1739286689362,-1587.28,0.00016849,2]
[352747740,1739286689371,-500.0,0.00016849,2]
[352747741,1739286689380,-1986.63,0.00016849,2]
[352747742,1739286689389,-1611.51,0.00016849,2]
[352747743,1739286689398,-2263.75,0.00016849,2]
[352747744,1739286689407,-500.0,0.00016849,2]
[352747745,1739286689418,-1686.274765,0.00016849,2]
[352747746,1739286689428,-500.0,0.00016849,2]
[352747747,1739286689437,-1434.59,0.00016849,2]
[352747748,1739286689447,-1037.87,0.00016849,2]
[352747749,1739286689456,-500.0,0.00016849,2]
[352747750,1739286689466,-1686.274765,0.00016849,2]
[352747751,1739286689475,-500.0,0.00016849,2]
[352747752,1739286689485,-537.91712387,0.00016849,2]
[352747753,1739286689494,-500.0,0.00016849,2]
[352747754,1739286689503,-728.06,0.00016849,2]
[352747755,1739286689513,-500.0,0.00016849,2]
[352747756,1739286689522,-1200.06,0.00016849,2]
[352747757,1739286689532,-500.0,0.00016849,2]
[352747758,1739286689541,-500.0,0.00016849,2]
[352747759,1739286689550,-500.0,0.00016849,2]
[352747760,1739286689559,-3515.84,0.00016849,2]
[352747761,1739286689569,-500.0,0.00016849,2]
[352747762,1739286689578,-500.0,0.00016849,2]
[352747763,1739286689588,-500.0,0.00016849,2]
[352747764,1739286689597,-1184.27,0.00016849,2]
[352747765,1739286689606,-531.25,0.00016849,2]
[352747766,1739286689615,-500.0,0.00016849,2]
[352747767,1739286689623,-500.0,0.00016849,2]
[352747768,1739286689633,-500.0,0.00016849,2]
[352747769,1739286689642,-992.21,0.00016849,2]
[352747770,1739286689652,-535.48,0.00016849,2]
[352747771,1739286689661,-1686.61,0.00016849,2]
[352747772,1739286689670,-500.0,0.00016849,2]
[352747773,1739286689680,-500.0,0.00016849,2]
[352747774,1739286689689,-1247.53,0.00016849,2]
[352747775,1739286689698,-502.93411545,0.00016849,2]
[352747776,1739286689707,-167.257731,0.00016849,2]
[352747777,1739286689717,-3140.59,0.00016849,2]
[352747778,1739286689726,-911.7,0.00016849,2]
[352747779,1739286689736,-500.0,0.00016849,2]
[352747780,1739286689746,-1308.74,0.00016849,2]
[352747781,1739286689755,-500.0,0.00016849,2]
[352747782,1739286689764,-151.0,0.00016849,2]
[352747783,1739286689773,-500.0,0.00016849,2]
[352747784,1739286689782,-735.75,0.00016849,2]
[352747785,1739286689792,-710.6,0.00016849,2]
[352747786,1739286689801,-1280.27,0.00016849,2]
[352747787,1739286689811,-500.0,0.00016849,2]
[352747788,1739286689822,-916.91,0.00016849,2]
[352747789,1739286689831,-500.0,0.00016849,2]
[352747790,1739286689840,-612.27,0.00016849,2]
[352747791,1739286689850,-1094.17,0.00016849,2]
[352747792,1739286689861,-661.37,0.00016849,2]
[352747793,1739286689871,-2224.85,0.00016849,2]
[352747794,1739286689881,-500.0,0.00016849,2]
[352747795,1739286689890,-1549.99,0.00016849,2]
[352747796,1739286689902,-1382.51,0.00016849,2]
[352747797,1739286689912,-504.88472438,0.00016849,2]
[352747798,1739286689921,-153.540568,0.00016849,2]
[352747799,1739286689932,-1189.01,0.00016849,2]
[352747800,1739286689941,-1234.53,0.00016849,2]
[352747801,1739286689951,-500.0,0.00016849,2]
[352747802,1739286689960,-1659.17,0.00016849,2]
[352747803,1739286689969,-1553.04,0.00016849,2]
[352747804,1739286689979,-500.0,0.00016849,2]
[352747805,1739286689988,-373.641843,0.00016849,2]
[352747806,1739286689997,-500.0,0.00016849,2]
[352747807,1739286690007,-500.0,0.00016849,2]
[352747808,1739286690017,-1543.06,0.00016849,2]
[352747809,1739286690026,-500.0,0.00016849,2]
[352747810,1739286690036,-1723.06,0.00016849,2]
[352747811,1739286690045,-772.37,0.00016849,2]
[352747812,1739286690055,-500.0,0.00016849,2]
[352747813,1739286690064,-373.641843,0.00016849,2]
[352747814,1739286690075,-500.0,0.00016849,2]
[352747815,1739286690084,-696.84,0.00016849,2]
[352747816,1739286690094,-500.0,0.00016849,2]
[352747817,1739286690103,-500.0,0.00016849,2]
[352747818,1739286690113,-500.0,0.00016849,2]
[352747819,1739286690122,-500.0,0.00016849,2]
[352747820,1739286690131,-1393.35,0.00016849,2]
[352747821,1739286690141,-151.0,0.00016849,2]
[352747822,1739286690150,-500.0,0.00016849,2]
[352747823,1739286690160,-1082.05,0.00016849,2]
[352747824,1739286690170,-2992.58,0.00016849,2]
[352747825,1739286690179,-500.0,0.00016849,2]
[352747826,1739286690189,-500.0,0.00016849,2]
[352747827,1739286690199,-500.0,0.00016849,2]
[352747828,1739286690208,-644.48,0.00016849,2]
[352747829,1739286690219,-500.0,0.00016849,2]
[352747830,1739286690228,-534.85,0.00016849,2]
[352747831,1739286690238,-151.0,0.00016849,2]
[352747832,1739286690247,-547.63,0.00016849,2]
[352747833,1739286690257,-1193.6,0.00016849,2]
[352747834,1739286690267,-1824.35,0.00016849,2]
[352747835,1739286690277,-500.0,0.00016849,2]
[352747836,1739286690286,-500.0,0.00016849,2]
[352747837,1739286690296,-500.0,0.00016849,2]
[352747838,1739286690306,-848.86,0.00016849,2]
[352747839,1739286690316,-500.0,0.00016849,2]
[352747840,1739286690325,-331.30390987,0.00016849,2]
[352747841,1739286690335,-500.0,0.00016849,2]
[352747842,1739286690345,-500.0,0.00016849,2]
[352747843,1739286690355,-1386.27,0.00016849,2]
[352747844,1739286690365,-1026.88,0.00016849,2]
[352747845,1739286690375,-500.0,0.00016849,2]
[352747846,1739286690384,-500.0,0.00016849,2]
[352747847,1739286690394,-500.0,0.00016849,2]
[352747848,1739286690404,-276.934846,0.00016849,2]
[352747849,1739286690415,-500.0,0.00016849,2]
[352747850,1739286690424,-1312.75,0.00016849,2]
[352747851,1739286690434,-500.0,0.00016849,2]
[352747852,1739286690443,-500.0,0.00016849,2]
[352747853,1739286690454,-500.0,0.00016849,2]
[352747854,1739286690463,-276.934846,0.00016849,2]
[352747855,1739286690473,-500.0,0.00016849,2]
[352747856,1739286690483,-1878.17,0.00016849,2]
[352747857,1739286690493,-1325.87,0.00016849,2]
[352747858,1739286690502,-151.0,0.00016849,2]
[352747859,1739286690512,-1410.09,0.00016849,2]
[352747860,1739286690522,-500.0,0.00016849,2]
[352747861,1739286690532,-500.0,0.00016849,2]
[352747862,1739286690542,-1600.98,0.00016849,2]
[352747863,1739286690551,-500.0,0.00016849,2]
[352747864,1739286690561,-1507.65,0.00016849,2]
[352747865,1739286690571,-500.0,0.00016849,2]
[352747866,1739286690581,-500.0,0.00016849,2]
[352747867,1739286690591,-500.0,0.00016849,2]
[352747868,1739286690601,-500.0,0.00016849,2]
[352747869,1739286690611,-821.93,0.00016849,2]
[352747870,1739286690621,-831.35,0.00016849,2]
[352747871,1739286690631,-500.0,0.00016849,2]
[352747872,1739286690641,-514.70037496,0.00016849,2]
[352747873,1739286690651,-826.481489,0.00016849,2]
[352747874,1739286690662,-151.0,0.00016849,2]
[352747875,1739286690673,-1000.0,0.00016849,2]
[352747876,1739286690683,-500.0,0.00016849,2]
[352747877,1739286690692,-500.0,0.00016849,2]
[352747878,1739286690702,-500.0,0.00016849,2]
[352747879,1739286690711,-826.481489,0.00016849,2]
[352747880,1739286690721,-743.26,0.00016849,2]
[352747881,1739286690730,-500.0,0.00016849,2]
[352747882,1739286690741,-1692.38,0.00016849,2]
[352747883,1739286690751,-500.0,0.00016849,2]
[352747884,1739286690761,-500.0,0.00016849,2]
[352747885,1739286690771,-995.22543445,0.00016849,60]
[352747886,1739286690781,-1335.54,0.00016849,2]
[352747887,1739286690791,-1379.5,0.00016849,2]
[352747888,1739286690801,-1280.98,0.00016849,2]
[352747889,1739286690810,-761.93,0.00016849,2]
[352747890,1739286690821,-534.86,0.00016849,2]
[352747891,1739286690831,-500.0,0.00016849,2]
[352747892,1739286690841,-803.13,0.00016849,2]
[352747893,1739286690850,-500.0,0.00016849,2]
[352747894,1739286690862,-196.96023445,0.00016849,2]
[352747895,1739286690872,-500.0,0.00016849,2]
[352747896,1739286690882,-500.0,0.00016849,2]
[352747897,1739286690891,-500.0,0.00016849,2]
[352747898,1739286690902,-1193.19,0.00016849,2]
[352747899,1739286690914,-500.0,0.00016849,2]
[352747900,1739286690924,-553.59210346,0.00016849,2]
[352747901,1739286690934,-500.0,0.00016849,2]
[352747902,1739286690943,-500.0,0.00016849,2]
[352747903,1739286690953,-1232.16,0.00016849,2]
[352747904,1739286690963,-2573.93,0.00016849,2]
[352747905,1739286690973,-671.5,0.00016849,2]
[352747906,1739286690983,-500.0,0.00016849,2]
[352747907,1739286690993,-515.5,0.00016849,2]
[352747908,1739286691003,-534.6,0.00016849,2]
[352747909,1739286691012,-500.0,0.00016849,2]
[352747910,1739286691022,-500.0,0.00016849,2]
[352747911,1739286691031,-500.0,0.00016849,2]
[352747912,1739286691041,-500.0,0.00016849,2]
[352747913,1739286691050,-44735.82472263,0.0001688,30]
[352747914,1739286691060,-3182.909815,0.0001688,2]
[352747915,1739286691070,-3182.909815,0.0001688,2]
[352747916,1739286691080,-151.0,0.0001688,2]
[352747917,1739286691089,-151.0,0.0001688,2]
[352747918,1739286691100,-298.413337,0.0001688,2]
[352747919,1739286691110,-298.413337,0.0001688,2]
[352747920,1739286691119,-277.35,0.0001688,2]
[352747921,1739286691128,-151.0,0.0001688,2]
[352747922,1739286691138,-151.0,0.0001688,2]
[352747923,1739286691148,-277.35,0.0001688,2]
[352747924,1739286691157,-2051.909194,0.0001688,2]
[352747925,1739286691168,-2726.884385,0.0001688,2]
[352747926,1739286691177,-2051.909194,0.0001688,2]
[352747927,1739286691187,-2726.884385,0.0001688,2]
[352747928,1739286691196,-151.0,0.0001688,2]
[352747929,1739286691206,-763.179375,0.0001688,2]
[352747930,1739286691216,-763.179375,0.0001688,2]
[352747931,1739286691225,-486.834709,0.0001688,2]
[352747932,1739286691235,-486.834709,0.0001688,2]
[352747933,1739286691244,-224.134026,0.0001688,2]
[352747934,1739286691254,-224.134026,0.0001688,2]
[352747935,1739286691263,-301.71605557,0.00016882,2]
[352747936,1739286691274,-4276792.96804572,0.00016892,5]
[352747937,1739286691652,-5503.2957812,0.00016892,5]
[352747938,1739286691664,-572.01931225,0.00016892,5]
[352747939,1739286691676,-115893.80460085,0.00016892,5]
[352747940,1739286691703,-419.40116331,0.00011434,2]
[352747941,1739286691713,-500.0,0.00016438,2]
[352747942,1739286691722,-285.81595013,0.00016892,5]
[352747943,1739286691735,-552413.91540025,0.00016892,5]
[352747944,1739286691846,-500.0,0.00016712,2]
[352747945,1739286691857,-657.55,0.00016849,2]
[352747946,1739286691867,-47367.45,0.00016892,5]
[352747947,1739286691879,-3430.76496843,0.00016892,5]
[352747948,1739286691890,-5234.82198111,0.00016892,5]
[352747949,1739286691902,-507.48070421,0.00016892,5]
[352747950,1739286692410,-438.84,0.00014301,2]
[352747951,1739286692421,-150.0,0.00014301,2]
[352747952,1739286692431,-315.61,0.00014301,2]
[352747953,1739286692441,-500.0,0.00016438,2]
[352747954,1739286692451,-500.0,0.00016438,2]
[352747955,1739286692460,-500.0,0.00016438,2]
[352747956,1739286692470,-500.0,0.00016438,2]
[352747957,1739286692480,-502.78436223,0.00016438,2]
[352747958,1739286692491,-500.0,0.00016575,2]
[352747959,1739286692500,-500.0,0.00016712,2]
[352747960,1739286692510,-500.0,0.00016849,2]
[352747961,1739286692519,-35318.56057687,0.00016892,5]
[352747962,1739286692531,-5569.03613779,0.00016892,5]
[352747963,1739286692541,-817.1986,0.00016892,5]
[352747964,1739286692552,-14073.7776466,0.00016892,5]
[352747965,1739286692602,-158.10531894,0.000109,2]
[352747966,1739286692611,-3275.71468106,0.00016892,5]
[352747967,1739286692624,-7441.4,0.00016892,5]
[352747968,1739286692635,-258.4,0.00016892,5]
[352747969,1739286692646,-826.79727951,0.00016892,5]
[352747970,1739286692662,-13315.39999914,0.00016892,5]
[352747971,1739286692674,-919.95970613,0.00016892,5]
[352747972,1739286692898,-151.0,0.00016435,2]
[352747973,1739286692908,-151.0,0.00016438,2]
[352747974,1739286692918,-500.0,0.00016438,2]
[352747975,1739286692928,-151.0,0.00016575,2]
[352747976,1739286692938,-151.0,0.00016712,2]
[352747977,1739286692947,-151.0,0.00016849,2]
[352747978,1739286692957,-13196.47664013,0.00016892,5]
[352747979,1739286692969,-1237.49451136,0.00016892,5]
[352747980,1739286692980,-10379.900397,0.00016892,5]
[352747981,1739286692993,-7704.83184912,0.00016892,5]
[352747982,1739286693005,-1810.0,0.00016892,5]
[352747983,1739286693016,-5844.0526866,0.00016892,5]
[352747984,1739286693046,-1139.1771887,0.00016892,5]
[352747990,1739286863305,2000.0,0.00020459,120]
[352747991,1739286912545,9418.88,8.836e-05,2]
[352747992,1739286912569,1256.4928,8.836e-05,2]
[352747997,1739286966956,4000.0,0.00020462,120]
[352748002,1739287150326,8743.5072,8.699e-05,2]
[352748003,1739287150349,6811.3424,8.699e-05,2]
[352748004,1739287287695,1616.7581,8.699e-05,2]
[352748005,1739287493131,1571.8995,8.836e-05,2]
[352748006,1739287493155,4928.1005,8.836e-05,2]
[352748007,1739287536820,5071.8995,8e-05,2]
[352748008,1739287536842,4928.1005,8e-05,2]
[352748009,1739287554740,5071.8995,6.94e-05,2]
[352748010,1739287554763,10000.0,6.94e-05,2]
[352748011,1739287554784,10000.0,6.94e-05,2]
[352748012,1739287554808,4089.86034944,6.94e-05,2]
[352748014,1739287626832,5910.13965056,8.836e-05,2]
[352748015,1739287626855,4930.89564944,8.836e-05,2]
[352748016,1739287632178,4017.006,8.836e-05,2]
[352748017,1739287657512,1052.09835056,8.256e-05,2]
[352748018,1739287657534,1187.68094944,8.256e-05,2]
[352748019,1739287682150,525.0742,8.836e-05,2]
[352748023,1739287728816,8287.24485056,8.836e-05,2]
[352748024,1739287728837,775.31974944,8.836e-05,2]
[352748035,1739287820218,9224.68025056,8.836e-05,2]
[352748036,1739287820240,10000.0,8.836e-05,2]
[352748037,1739287820265,10000.0,8.836e-05,2]
[352748038,1739287820289,4694.00054944,8.836e-05,2]
[352748049,1739287832891,-2500.0,8.851e-05,2]
[352748050,1739287832901,-150.0,9.999e-05,2]
[352748051,1739287832910,-487.465,9.999e-05,2]
[352748052,1739287832920,-24771.9793802,0.0001,2]
[352748053,1739287832932,-25076.16481,0.0001,2]
[352748054,1739287832944,-10133.75574845,0.0001,2]
[352748080,1739287838417,-9742.87127798,0.0001,2]
[352748081,1739287838428,-19475.57174454,0.0001,2]
[352748083,1739287838543,-2025.44595638,0.0001,2]
[352748084,1739287838586,-724.77043532,0.0001,2]
[352748085,1739287838630,-9469.17732293,0.0001,2]
[352748086,1739287838641,-113640.49824765,0.0001,2]
[352748087,1739287838652,-75961.14849939,0.0001,2]
[352748106,1739287840647,-2374.38258882,0.0001,2]
[352748107,1739287840659,-319.68465826,0.0001,2]
[352748108,1739287840833,-9696.9,0.0001,2]
[352748109,1739287840844,-12004.85833689,0.0001,2]
[352748110,1739287840897,-2684.51208055,0.0001,2]
[352748111,1739287840909,-5686.26989512,0.0001,2]
[352748112,1739287840920,-312.3160075,0.0001,2]
[352748113,1739287840932,-2480.74477818,0.0001,2]
[352748117,1739287841188,-867.51146052,0.0001,2]
[352748119,1739287841208,-129862.25018892,0.0001,2]
[352748121,1739287841224,-649.84901329,0.0001,2]
[352748123,1739287841236,-844.34473846,0.0001,2]
[352748124,1739287841248,-927.740244,0.0001,2]
[352748133,1739287844747,-66743.33352421,0.0001,2]
[352748134,1739287844796,-8076.80271905,0.0001,2]
[352748135,1739287844960,-9712.599,0.0001,2]
[352748136,1739287844971,-1023.94908621,0.0001,2]
[352748137,1739287844983,-2546.20653174,0.0001,2]
[352748138,1739287844994,-19396.690668,0.0001,2]
[352748139,1739287845006,-24489.48492701,0.0001,2]
[352748140,1739287845017,-1011.29850004,0.0001,2]
[352748141,1739287845028,-890.57598,0.0001,2]
[352748142,1739287845039,-952.7628159,0.0001,2]
[352748143,1739287845050,-1003.531125,0.0001,2]
[352748144,1739287845062,-918.136545,0.0001,2]